bitfinex-derivatives/quotes_SOLF0:USTF0_20250312
["timestamp","ask_amount","ask_price","bid_price","bid_amount"]
[1741795815601,0.05140363,124.93,124.92,8.0065]
[1741795816909,3.63e-06,124.93,124.92,8.0065]
[1741795817711,3.63e-06,124.93,124.92,41.17151506]
[1741795817909,36.56,125.03,124.94,33.16501506]
[1741795818109,36.56,125.03,124.94,69.72501506]
[1741795818306,44.5598,125.03,124.94,69.72501506]
[1741795818513,44.5598,125.03,124.97,8.0029]
[1741795818914,44.5598,125.03,124.94,69.72501506]
[1741795819406,0.05071491,125.0,124.97,0.05146242]
[1741795820004,8.0024,124.99,124.97,0.05146242]
[1741795820203,12.5087,124.99,124.97,0.05146242]
[1741795820615,49.0487,124.99,124.97,0.05146242]
[1741795822114,8.0027,124.98,124.91,48.9666]
[1741795822313,49.0487,124.99,124.91,48.9666]
[1741795822905,12.5087,124.99,124.91,48.9666]
[1741795823310,0.05696785,124.96,124.94,0.0613558]
[1741795823708,0.05696785,124.96,124.94,8.0660558]
[1741795824313,0.05696785,124.96,124.95,8.0046]
[1741795824520,0.05696785,124.96,124.94,0.0613558]
[1741795824914,0.05696785,124.96,124.94,8.0662558]
[1741795825111,0.05696785,124.96,124.94,0.0613558]
[1741795825517,0.05696785,124.96,124.95,8.0046]
[1741795827507,49.153,125.03,124.98,8.0021]
[1741795827713,49.153,125.03,124.94,33.22637086]
[1741795827714,49.153,125.03,124.95,36.54]
[1741795828122,49.153,125.03,124.96,8.0035]
[1741795828418,49.153,125.03,124.95,36.54]
[1741795828616,0.05405756,125.01,124.98,0.0531114]
[1741795828920,8.0017,125.0,124.98,0.0531114]
[1741795829212,8.0017,125.0,124.98,8.0557114]
[1741795829417,8.05505756,125.01,124.98,8.0557114]
[1741795829613,0.00259514,125.01,124.99,36.52]
[1741795829813,0.00259514,125.01,125.0,8.0014]
[1741795830007,0.00259514,125.01,124.99,36.52]
[1741795830211,0.00259514,125.01,124.98,0.0531114]
[1741795830411,8.002,124.99,124.98,0.0531114]
[1741795831011,8.0017,125.0,124.98,0.0531114]
[1741795831214,0.00259514,125.01,124.98,0.0531114]
[1741795831615,8.0015,125.0,124.98,0.0531114]
[1741795831817,0.00259514,125.01,124.98,0.0531114]
[1741795832624,0.00259514,125.01,124.99,8.0016]
[1741795833419,0.00259514,125.01,124.98,0.0531114]
[1741795834323,0.00259514,125.01,124.99,8.0016]
[1741795834620,0.00259514,125.01,124.98,0.0531114]
[1741795835526,0.00259514,125.01,124.99,8.0016]
[1741795835825,0.00259514,125.01,124.98,0.0531114]
[1741795836020,0.00259514,125.01,124.98,33.21812646]
[1741795836320,0.00259514,125.01,125.0,8.0014]
[1741795838917,0.2833,125.03,125.02,8.0001]
[1741795840016,0.2833,125.03,125.01,8.06003214]
[1741795841022,0.05069607,125.04,125.01,8.06003214]
[1741795841423,0.05069607,125.04,125.02,8.0]
[1741795841623,0.05069607,125.04,125.01,0.05963214]
[1741795841824,0.05069607,125.04,125.02,33.16501506]
[1741795842019,0.05069607,125.04,125.03,7.9995]
[1741795842625,0.05069607,125.04,125.02,28.72166283]
[1741795842825,0.05069607,125.04,125.01,0.05963214]
[1741795843831,8.0,125.03,125.01,0.05963214]
[1741795845332,8.0,125.03,125.01,8.06033214]
[1741795845533,0.05069607,125.04,125.01,0.05963214]
[1741795845734,0.05069607,125.04,125.01,8.06003214]
[1741795846034,0.05069607,125.04,125.01,0.05963214]
[1741795846436,0.05069607,125.04,125.03,7.9995]
[1741795847231,0.31343,125.1,125.05,7.9976]
[1741795847436,7.9963,125.08,125.04,20.72186283]
[1741795847835,7.9963,125.08,125.05,7.9979]
[1741795848332,7.997,125.07,125.04,20.72186283]
[1741795848534,7.997,125.07,125.05,0.0565552]
[1741795848729,8.04781772,125.08,125.05,0.0565552]
[1741795848926,0.05111772,125.08,125.05,8.0543552]
[1741795849231,0.05111772,125.08,125.05,0.0565552]
[1741795849630,7.9969,125.07,125.05,0.0565552]
[1741795849832,0.05111772,125.08,125.05,0.0565552]
[1741795850033,8.04791772,125.08,125.05,8.0543552]
[1741795850434,0.05111772,125.08,125.05,8.0543552]
[1741795850636,7.997,125.07,125.05,8.0543552]
[1741795851535,7.9976,125.06,125.05,0.0565552]
[1741795853036,7.9996,125.03,125.01,8.0004]
[1741795853341,7.9996,125.03,125.0,20.72186283]
[1741795853543,7.9989,125.04,125.0,20.72186283]
[1741795853943,36.7,125.08,125.0,20.72186283]
[1741795854143,0.05132473,125.03,125.01,0.05987395]
[1741795854340,36.7,125.08,125.02,7.9998]
[1741795854544,0.05157208,125.03,125.02,28.72166283]
[1741795854742,0.31343,125.1,125.04,0.05487708]
[1741795854943,0.0613768,125.08,125.07,7.9966]
[1741795855148,0.0613768,125.08,125.06,0.05862001]
[1741795855646,7.9969,125.07,125.06,0.05862001]
[1741795856147,0.0613768,125.08,125.01,8.0004]
[1741795856347,20.78323963,125.08,125.01,8.0004]
[1741795856749,7.9987,125.05,125.0,20.72186283]
[1741795857137,0.05117832,125.04,125.01,0.05892113]
[1741795857344,0.05117832,125.04,125.02,20.72186283]
[1741795857745,0.05117832,125.04,125.03,7.9995]
[1741795858946,0.05117832,125.04,125.01,0.05892113]
[1741795859447,8.05037832,125.04,125.01,8.05932113]
[1741795860049,8.05027832,125.04,125.01,8.05962113]
[1741795860655,8.05027832,125.04,125.02,8.0001]
[1741795860851,8.05027832,125.04,125.01,0.05892113]
[1741795861046,0.05117832,125.04,125.01,0.05892113]
[1741795862152,8.34327832,125.04,125.01,0.05892113]
[1741795862452,8.34327832,125.04,124.97,20.72186283]
[1741795862652,8.34327832,125.04,124.96,20.72186283]
[1741795862955,8.003,124.98,124.95,28.72596283]
[1741795863163,37.46,125.01,124.95,20.72186283]
[1741795863465,37.46,125.01,124.93,20.72186283]
[1741795863660,0.05061401,124.99,124.97,0.05247991]
[1741795863963,0.05061401,124.99,124.97,28.77754274]
[1741795864164,0.05061401,124.99,124.97,20.77434274]
[1741795864463,0.05061401,124.99,124.98,8.0027]
[1741795864865,53.6713,125.04,124.97,20.77434274]
[1741795865058,45.6721,125.04,125.0,28.72276283]
[1741795865459,45.6721,125.04,125.0,20.72186283]
[1741795865659,45.6721,125.04,124.97,20.72186283]
[1741795865859,45.6721,125.04,124.96,58.02186283]
[1741795866059,0.05510498,125.02,124.99,0.05673112]
[1741795866568,8.0011,125.01,124.99,0.05673112]
[1741795866764,0.05510498,125.02,124.99,0.05673112]
[1741795867265,0.05510498,125.02,125.01,8.0007]
[1741795867463,0.05510498,125.02,124.99,0.05673112]
[1741795868163,8.0011,125.01,124.99,0.05673112]
[1741795868467,0.05510498,125.02,124.99,0.05673112]
[1741795869166,0.05510498,125.02,125.0,8.0011]
[1741795869358,0.05510498,125.02,124.99,0.05673112]
[1741795869766,0.05510498,125.02,125.0,8.0011]
[1741795869968,0.05510498,125.02,124.99,0.05673112]
[1741795870266,0.05510498,125.02,125.0,8.001]
[1741795870670,0.05510498,125.02,125.0,20.72186283]
[1741795870860,0.05510498,125.02,125.01,8.0007]
[1741795871168,4.0977,125.09,125.0,57.82186283]
[1741795871361,4.0977,125.09,125.04,20.72186283]
[1741795871561,12.0937,125.09,125.06,7.9972]
[1741795871763,8.1102,125.11,125.06,20.72186283]
[1741795872065,7.9954,125.1,125.07,7.9964]
[1741795872261,8.05092956,125.1,125.07,8.05386639]
[1741795872669,0.05552956,125.1,125.07,8.05386639]
[1741795872967,0.05552956,125.1,125.07,0.05746639]
[1741795873168,0.05552956,125.1,125.08,7.9962]
[1741795873466,0.33659,125.15,125.07,33.19150608]
[1741795873665,131.10080334,125.21,125.19,7.9892]
[1741795873874,45.37952987,125.22,125.2,37.06]
[1741795874166,45.37952987,125.22,125.16,33.13403969]
[1741795874375,82.41952987,125.22,125.13,33.13403969]
[1741795874560,45.37952987,125.22,125.16,33.13403969]
[1741795874766,0.05172751,125.19,125.18,7.9898]
[1741795875367,0.05172751,125.19,125.17,0.05092508]
[1741795875672,0.05172751,125.19,125.18,33.13403969]
[1741795876171,45.37952987,125.22,125.18,41.11403969]
[1741795876476,273.33210531,125.23,125.21,33.13403969]
[1741795876663,480.99451819,125.27,125.21,33.13403969]
[1741795876664,33.13403969,125.33,125.21,33.13403969]
[1741795876864,3.9978,125.3,125.26,33.13403969]
[1741795877066,3.9978,125.3,125.22,33.13403969]
[1741795877266,0.03928021,125.29,125.27,0.05453083]
[1741795877467,0.03928021,125.29,125.21,36.86]
[1741795877674,8.02218021,125.29,125.2,273.03403969]
[1741795877869,3.9978,125.3,125.2,273.03403969]
[1741795878574,7.9836,125.28,125.2,273.03403969]
[1741795878774,0.05250195,125.26,125.24,0.05034428]
[1741795878965,0.05250195,125.26,125.25,32.90033071]
[1741795879172,0.05250195,125.26,125.25,19.78013071]
[1741795879372,0.05250195,125.26,125.23,87.81926331]
[1741795880174,37.14,125.25,125.24,9.7994254]
[1741795880373,37.14,125.25,125.21,87.81926331]
[1741795880671,37.14,125.25,125.23,0.05784754]
[1741795880875,70.27403969,125.25,125.21,87.81926331]
[1741795881369,33.13403969,125.23,125.21,81.25796331]
[1741795881673,33.13403969,125.23,125.22,188.74709568]
[1741795881869,78.15403969,125.23,125.2,177.99572196]
[1741795882066,33.13403969,125.21,125.2,40.60700527]
[1741795882375,7.988,125.21,125.2,0.05977636]
[1741795882675,70.17403969,125.23,125.2,0.05977636]
[1741795882876,7.9876,125.22,125.2,0.05977636]
[1741795883174,70.17403969,125.23,125.2,0.05977636]
[1741795883368,0.05762456,125.24,125.2,0.05977636]
[1741795884877,0.05762456,125.24,125.2,4.39687636]
[1741795888071,0.05762456,125.24,125.2,37.53091605]
[1741795888271,36.82,125.29,125.2,37.53091605]
[1741795888675,36.82,125.29,125.2,4.3371]
[1741795888977,69.95403969,125.29,125.2,4.3371]
[1741795889172,33.13403969,125.27,125.19,243.918]
[1741795889377,33.13403969,125.25,125.17,4.1692]
[1741795889574,7.989,125.2,125.17,4.1692]
[1741795890078,7.9894,125.19,125.17,4.22727292]
[1741795890275,0.05738854,125.2,125.17,4.22727292]
[1741795891075,8.04598854,125.2,125.17,4.22727292]
[1741795892679,7.9893,125.19,125.17,0.05807292]
[1741795893384,7.9896,125.19,125.17,0.05807292]
[1741795893883,0.05738854,125.2,125.17,0.05807292]
[1741795894181,0.05738854,125.2,125.18,33.13403969]
[1741795894379,36.62,125.26,125.19,4.075]
[1741795894575,7.9877,125.22,125.19,4.075]
[1741795894874,36.62,125.26,125.19,4.075]
[1741795895376,33.13403969,125.25,125.19,4.075]
[1741795895575,0.05209268,125.24,125.21,0.05041333]
[1741795895781,7.9873,125.22,125.21,0.05041333]
[1741795896080,44.6073,125.22,125.21,0.05041333]
[1741795898273,44.6073,125.22,125.21,1.333e-05]
[1741795898779,7.9873,125.22,125.21,1.333e-05]
[1741795898979,0.06044909,125.24,125.21,1.333e-05]
[1741795899486,7.987,125.23,125.21,1.333e-05]
[1741795899780,0.06044909,125.24,125.21,1.333e-05]
[1741795900081,0.06044909,125.24,125.21,7.98751333]
[1741795900275,0.06044909,125.24,125.22,4.0081]
[1741795901180,7.9873,125.22,125.21,1.333e-05]
[1741795904476,41.11403969,125.22,125.08,33.13403969]
[1741795904688,41.11403969,125.22,125.07,333.05588864]
[1741795904689,33.13403969,125.15,125.07,333.05588864]
[1741795904986,33.13403969,125.11,125.07,320.05908864]
[1741795905275,36.52,125.14,125.07,320.05908864]
[1741795905276,7.9963,125.08,125.07,259.87858864]
[1741795905477,36.64,125.08,125.01,87.86929678]
[1741795905681,33.13403969,125.06,125.01,87.86929678]
[1741795905981,36.64,125.05,125.03,0.06115902]
[1741795906283,7.9988,125.04,125.03,0.06115902]
[1741795906483,0.05898894,125.05,125.03,0.06115902]
[1741795908779,7.9988,125.04,125.03,0.06115902]
[1741795908977,36.81898894,125.05,125.03,0.06115902]
[1741795909281,36.81898894,125.05,125.03,5.902e-05]
[1741795909582,7.9988,125.04,125.03,5.902e-05]
[1741795909783,0.05898894,125.05,125.03,5.902e-05]
[1741795909983,36.83898894,125.05,125.03,5.902e-05]
[1741795910382,47.73187569,125.05,125.03,5.902e-05]
[1741795910583,55.73067569,125.05,125.03,5.902e-05]
[1741795910785,10.95187569,125.05,125.03,5.902e-05]
[1741795911685,7.9988,125.04,125.03,5.902e-05]
[1741795913287,36.66,125.04,125.03,5.902e-05]
[1741795913786,36.66,125.04,124.98,61.88719712]
[1741795913984,36.66,125.04,124.98,53.88459712]
[1741795914288,44.7365,125.08,125.0,61.88589712]
[1741795914483,36.74,125.08,125.0,53.88459712]
[1741795914681,36.74,125.08,125.01,8.2557]
[1741795914881,0.05204829,125.05,125.03,0.05245057]
[1741795915687,0.05204829,125.05,125.03,0.03245057]
[1741795915880,43.84387304,125.09,125.04,53.88459712]
[1741795916787,36.84,125.1,125.06,7.9975]
[1741795916985,0.0607324,125.08,125.06,53.88459712]
[1741795917189,43.84387304,125.13,125.08,53.88459712]
[1741795917487,43.84387304,125.13,125.1,53.88459712]
[1741795917691,43.84387304,125.13,125.1,61.87919712]
[1741795917890,43.84387304,125.13,125.1,53.88459712]
[1741795918393,43.89550841,125.13,125.1,53.93823812]
[1741795918582,36.84,125.16,125.12,7.9933]
[1741795918785,36.84,125.16,125.1,53.93823812]
[1741795918991,36.74,125.19,125.1,53.88459712]
[1741795919292,36.74,125.19,125.12,7.9932]
[1741795919486,36.74,125.19,125.1,53.88459712]
[1741795919690,0.05173959,125.17,125.14,0.05186566]
[1741795919880,8.04263959,125.17,125.14,0.05186566]
[1741795920081,0.05173959,125.17,125.14,0.05186566]
[1741795920989,7.9916,125.16,125.14,0.05186566]
[1741795921494,0.05173959,125.17,125.14,0.05186566]
[1741795923696,7.9916,125.16,125.14,0.05186566]
[1741795923891,0.05173959,125.17,125.14,0.05186566]
[1741795924298,7.9918,125.15,125.14,0.05186566]
[1741795924494,44.7118,125.15,125.14,0.05186566]
[1741795924799,0.05173959,125.17,125.14,0.05186566]
[1741795925300,7.9918,125.15,125.14,0.05186566]
[1741795927302,0.05173959,125.17,125.14,0.05186566]
[1741795927694,36.6,125.23,125.14,53.93646278]
[1741795927900,7.9884,125.21,125.17,7.9901]
[1741795928100,7.9884,125.21,125.16,4.0732]
[1741795928297,36.58,125.23,125.16,4.0732]
[1741795928497,90.46459712,125.23,125.16,4.0732]
[1741795928699,53.88459712,125.21,125.1,94.38629712]
[1741795928899,7.9922,125.15,125.11,16.2207]
[1741795929100,36.54,125.17,125.14,0.05364295]
[1741795929403,7.9918,125.15,125.14,0.05364295]
[1741795929904,7.9937,125.12,125.11,4.0732]
[1741795930104,36.54,125.18,125.11,4.0732]
[1741795930600,53.88459712,125.2,125.11,4.0732]
[1741795930804,36.5,125.2,125.12,53.88459712]
[1741795931109,0.05604942,125.17,125.15,0.06014422]
[1741795931697,7.9912,125.16,125.15,0.06014422]
[1741795932103,36.5,125.16,125.09,4.1823]
[1741795933199,36.5,125.19,125.12,7.9933]
[1741795933399,36.5,125.19,125.1,90.38459712]
[1741795933598,0.05221141,125.17,125.14,0.05178987]
[1741795933905,7.9883,125.21,125.16,53.88459712]
[1741795934104,1.5970614,125.23,125.17,4.2638]
[1741795934306,7.989,125.2,125.17,4.2638]
[1741795934503,1.5970614,125.23,125.17,4.2638]
[1741795934900,0.05269182,125.21,125.19,0.05711574]
[1741795935507,7.9886,125.2,125.19,0.05711574]
[1741795936210,0.05269182,125.21,125.19,0.05711574]
[1741795936408,7.9886,125.2,125.19,0.05711574]
[1741795938104,7.9886,125.2,125.19,1.574e-05]
[1741795938308,15.9686,125.2,125.19,1.574e-05]
[1741795939806,7.9886,125.2,125.19,1.574e-05]
[1741795940504,44.4886,125.2,125.19,1.574e-05]
[1741795940905,7.9886,125.2,125.19,1.574e-05]
[1741795941105,124.30971135,125.2,125.11,4.3016]
[1741795941302,116.32971135,125.2,125.11,4.3016]
[1741795941508,116.32971135,125.2,125.11,12.2955]
[1741795941710,62.44511423,125.2,125.11,58.18619712]
[1741795942011,62.44511423,125.2,125.11,4.3016]
[1741795942212,0.05508214,125.17,125.14,0.05750799]
[1741795943009,36.5,125.21,125.15,7.9914]
[1741795943210,43.84387304,125.22,125.14,0.05750799]
[1741795943408,80.34387304,125.22,125.16,7.9907]
[1741795943911,43.84387304,125.22,125.17,53.88459712]
[1741795944107,43.84387304,125.22,125.18,3.9972]
[1741795944304,7.9892,125.19,125.18,4.0572183]
[1741795944503,0.05060083,125.2,125.18,4.0572183]
[1741795944912,7.9892,125.19,125.18,4.0572183]
[1741795945805,0.05060083,125.2,125.18,4.0572183]
[1741795946220,7.9892,125.19,125.18,0.0600183]
[1741795946423,7.9892,125.19,125.18,1.83e-05]
[1741795948112,17.3603653,125.19,125.18,1.83e-05]
[1741795948320,7.9944,125.11,125.1,4.3219]
[1741795948612,27.0090974,125.21,125.1,4.3219]
[1741795948613,36.5,125.15,125.1,4.3219]
[1741795948819,7.9944,125.11,125.1,4.3219]
[1741795949014,36.5,125.15,125.1,4.3219]
[1741795949421,7.9939,125.12,125.11,0.05040202]
[1741795951525,7.9934,125.13,125.11,0.05040202]
[1741795951827,0.05862733,125.14,125.11,0.05040202]
[1741795952634,7.9937,125.12,125.11,0.05040202]
[1741795953633,7.9937,125.12,125.11,2.02e-06]
[1741795955135,26.21195709,125.14,125.11,2.02e-06]
[1741795956030,7.9937,125.12,125.11,2.02e-06]
[1741795959233,78.42157557,125.12,125.11,2.02e-06]
[1741795960840,141.69814485,125.12,125.11,2.02e-06]
[1741795961040,63.27026928,125.12,125.11,2.02e-06]
[1741795961733,7.9937,125.12,125.11,2.02e-06]
[1741795962933,44.4937,125.12,125.11,2.02e-06]
[1741795964242,44.5137,125.12,125.11,2.02e-06]
[1741795965237,98.40459712,125.12,125.01,12.7646]
[1741795965438,241.47859323,125.11,125.01,12.7646]
[1741795965843,7.9994,125.04,125.01,12.7646]
[1741795966148,36.5,125.06,125.01,12.7646]
[1741795966336,8.05817178,125.04,125.01,12.82534611]
[1741795966645,0.05897178,125.04,125.01,12.82534611]
[1741795968139,7.9999,125.03,125.01,12.82534611]
[1741795968845,0.05897178,125.04,125.01,0.06074611]
[1741795969735,53.88459712,125.03,125.01,4.611e-05]
[1741795969949,36.52,125.02,124.93,8.5246]
[1741795971133,8.05445934,124.99,124.96,0.05213893]
[1741795971646,0.05205934,124.99,124.96,0.05213893]
[1741795972039,8.05455934,124.99,124.96,0.05213893]
[1741795972236,0.05205934,124.99,124.96,0.05213893]
[1741795972741,36.52,125.02,124.96,0.05213893]
[1741795973142,36.52,125.06,124.97,90.46808669]
[1741795973951,0.05994875,125.03,125.0,0.06013706]
[1741795974148,44.20592365,125.07,125.01,53.94808669]
[1741795974548,44.20592365,125.07,125.01,90.46808669]
[1741795974744,4.86992365,125.07,125.03,53.94808669]
[1741795974948,4.86992365,125.07,125.04,7.9983]
[1741795975147,4.86992365,125.07,125.03,53.94808669]
[1741795975349,4.93134675,125.07,125.04,0.0580976]
[1741795976146,0.0614231,125.07,125.04,0.0580976]
[1741795976546,0.0614231,125.07,125.06,7.9976]
[1741795976748,0.0614231,125.07,125.04,0.0580976]
[1741795976946,1.59859323,125.11,125.05,90.46808669]
[1741795977147,1.59859323,125.11,125.08,53.94808669]
[1741795977455,48.7506,125.17,125.1,53.94808669]
[1741795977654,48.7506,125.17,125.11,7.994]
[1741795977854,36.52,125.17,125.1,53.94808669]
[1741795978248,0.055623,125.15,125.12,8.05448634]
[1741795980557,0.055623,125.15,125.12,0.06138634]
[1741795980953,8.047523,125.15,125.12,0.06138634]
[1741795981252,0.055623,125.15,125.12,54.00947303]
[1741795981956,0.055623,125.15,125.12,0.06138634]
[1741795982148,8.047623,125.15,125.12,0.06138634]
[1741795982353,0.055623,125.15,125.12,0.06138634]
[1741795982552,0.055623,125.15,125.12,58.08527303]
[1741795982854,0.055623,125.15,125.13,7.9927]
[1741795983356,44.5095,125.19,125.15,7.9914]
[1741795983656,36.52,125.19,125.12,58.02388669]
[1741795983855,36.52,125.19,125.12,4.0758]
[1741795984454,36.52,125.19,125.14,0.06015617]
[1741795984654,90.46808669,125.19,125.14,0.06015617]
[1741795985056,7.9918,125.15,125.14,0.06015617]
[1741795985253,36.52,125.19,125.14,0.06015617]
[1741795985855,36.5,125.21,125.14,0.06015617]
[1741795986054,36.5,125.21,125.13,53.94808669]
[1741795986261,36.5,125.21,125.16,0.05636844]
[1741795986558,7.9911,125.17,125.16,0.05636844]
[1741795988153,44.4911,125.17,125.16,0.05636844]
[1741795988854,44.4911,125.17,125.16,6.844e-05]
[1741795989756,106.41918669,125.17,125.16,6.844e-05]
[1741795989955,7.9951,125.1,125.06,8.3803]
[1741795990160,36.48,125.13,125.06,8.3803]
[1741795990459,36.48,125.13,125.05,57.98348669]
[1741795990756,36.48,125.13,125.07,7.9967]
[1741795991258,0.05774354,125.11,125.09,0.06021354]
[1741795991660,7.995,125.1,125.09,0.06021354]
[1741795992960,8.05244354,125.11,125.09,0.06021354]
[1741795993160,0.05774354,125.11,125.09,0.06021354]
[1741795993755,36.5,125.16,125.09,54.00830023]
[1741795993961,36.5,125.16,125.11,7.9938]
[1741795994163,36.5,125.16,125.07,53.94808669]
[1741795994558,7.9936,125.13,125.07,53.94808669]
[1741795994961,7.9936,125.13,125.09,0.05032403]
[1741795995267,36.5,125.16,125.09,0.05032403]
[1741795995754,7.9943,125.12,125.09,0.05032403]
[1741795996062,36.5,125.16,125.09,0.05032403]
[1741795997262,36.5,125.16,125.09,8.04572403]
[1741795997465,36.5,125.16,125.09,0.05032403]
[1741795997660,33.13031755,125.15,125.09,0.05032403]
[1741795998464,7.995,125.1,125.09,0.05032403]
[1741795998863,36.48,125.12,125.09,8.04592403]
[1741795999070,7.9921,125.15,125.09,0.05032403]
[1741795999268,7.9921,125.15,125.08,36.48]
[1741795999470,7.9921,125.15,125.11,8.04850393]
[1741795999762,36.5,125.18,125.11,0.05430393]
[1741795999965,36.5,125.18,125.14,7.9921]
[1741796000166,7.9906,125.17,125.14,7.9921]
[1741796000368,7.9906,125.17,125.14,7.9924]
[1741796000767,364.75184732,125.22,125.13,33.18557999]
[1741796000962,328.25184732,125.22,125.13,41.27151755]
[1741796001168,276.34,125.22,125.16,0.06080311]
[1741796001768,7.9884,125.21,125.16,0.06080311]
[1741796002167,124.91184732,125.23,125.18,7.9895]
[1741796002364,88.41184732,125.23,125.17,33.13031755]
[1741796002562,88.41184732,125.23,125.19,0.05469173]
[1741796002766,7.9886,125.2,125.19,0.05469173]
[1741796003166,88.41184732,125.23,125.19,0.05469173]
[1741796003566,88.41184732,125.23,125.21,7.9876]
[1741796003869,36.48,125.27,125.2,12.5034]
[1741796004065,36.48,125.26,125.2,12.5034]
[1741796004269,36.48,125.26,125.22,0.05788559]
[1741796005066,7.9867,125.23,125.22,0.05788559]
[1741796005461,36.48,125.26,125.22,0.05788559]
[1741796005668,4.2916,125.29,125.22,0.05788559]
[1741796005972,36.48,125.28,125.22,0.05788559]
[1741796006172,7.9867,125.23,125.22,0.05788559]
[1741796006675,7.9865,125.24,125.22,0.05788559]
[1741796007274,90.22276149,125.28,125.22,0.05788559]
[1741796008369,7.9867,125.23,125.22,0.05788559]
[1741796009768,7.9863,125.24,125.22,0.05788559]
[1741796009973,36.46,125.25,125.22,0.05788559]
[1741796010379,7.9867,125.23,125.22,0.05788559]
[1741796010777,7.9891,125.2,125.16,44.4709]
[1741796010981,8.5133,125.24,125.16,36.48]
[1741796011185,62.25606149,125.24,125.16,36.48]
[1741796011377,62.25606149,125.24,125.14,53.74276149]
[1741796011378,7.989,125.2,125.14,53.74276149]
[1741796011680,7.989,125.2,125.16,7.9909]
[1741796011877,0.05386391,125.18,125.16,0.05573784]
[1741796012077,8.5133,125.24,125.14,90.20276149]
[1741796012284,0.06045106,125.18,125.16,0.06118103]
[1741796012477,8.5133,125.24,125.14,90.20276149]
[1741796012676,0.05588653,125.18,125.16,0.06034595]
[1741796013880,8.5133,125.24,125.16,53.80310744]
[1741796014185,86.75729536,125.3,125.18,53.74276149]
[1741796014382,40.5911,125.28,125.19,36.46]
[1741796014581,7.986,125.25,125.19,36.46]
[1741796014782,7.986,125.25,125.22,7.9872]
[1741796015175,7.986,125.25,125.22,8.04421834]
[1741796015787,33.01453387,125.27,125.22,0.05701834]
[1741796015983,33.01453387,125.27,125.22,53.79977983]
[1741796016187,33.01453387,125.27,125.23,7.9864]
[1741796016782,33.01453387,125.27,125.23,7.9866]
[1741796016989,33.01453387,125.27,125.22,0.05701834]
[1741796017385,7.9857,125.25,125.22,8.04401834]
[1741796017590,8.6334,125.29,125.22,0.05701834]
[1741796017792,7.9851,125.26,125.22,0.05701834]
[1741796018387,7.9851,125.26,125.23,7.9866]
[1741796018592,276.28,125.31,125.22,53.79977983]
[1741796018794,45.52323387,125.32,125.25,53.74276149]
[1741796018989,45.52323387,125.32,125.25,53.79801053]
[1741796018990,40.99563387,125.32,125.25,53.79801053]
[1741796019191,33.01453387,125.32,125.27,53.74276149]
[1741796019390,33.01453387,125.32,125.27,90.18276149]
[1741796019592,33.01453387,125.32,125.29,7.9825]
[1741796019789,33.01453387,125.32,125.28,0.05986394]
[1741796020094,7.9813,125.32,125.28,0.05986394]
[1741796020294,33.01453387,125.33,125.28,0.05986394]
[1741796022401,7.9829,125.29,125.28,0.05986394]
[1741796022694,36.44,125.3,125.21,4.1271]
[1741796022899,7.9858,125.25,125.21,12.1147]
[1741796023498,7.985,125.26,125.22,7.987]
[1741796023698,0.05821404,125.26,125.23,0.06053618]
[1741796024098,0.05821404,125.26,125.23,8.04683618]
[1741796024499,0.05821404,125.26,125.23,0.06053618]
[1741796024699,7.9858,125.25,125.23,0.06053618]
[1741796025097,0.05821404,125.26,125.23,0.06053618]
[1741796026791,0.05821404,125.26,125.24,7.9856]
[1741796026995,33.01453387,125.38,125.25,33.05310895]
[1741796027295,7.9804,125.33,125.26,36.44]
[1741796027494,8.494,125.37,125.27,4.0406]
[1741796027698,33.01453387,125.34,125.27,4.0406]
[1741796027898,7.9807,125.33,125.28,7.983]
[1741796028196,33.01453387,125.34,125.29,0.05365126]
[1741796028399,33.01453387,125.34,125.32,7.9806]
[1741796028601,132.61777098,125.36,125.3,36.44]
[1741796028797,132.61777098,125.36,125.32,0.05760433]
[1741796028997,12.5681,125.37,125.32,0.05760433]
[1741796030000,7.9794,125.35,125.32,0.05760433]
[1741796031208,36.42,125.36,125.32,0.05760433]
[1741796031397,36.42,125.36,125.32,8.03820433]
[1741796031597,36.42,125.36,125.32,0.05760433]
[1741796031900,12.5681,125.37,125.32,0.05760433]
[1741796032106,32.96140888,125.4,125.32,0.05760433]
[1741796032294,7.9769,125.39,125.35,7.9787]
[1741796032493,81.59200888,125.4,125.35,0.06115581]
[1741796032804,81.59200888,125.4,125.32,33.05310895]
[1741796032805,34.64813247,125.39,125.27,4.0406]
[1741796033205,7.9804,125.33,125.27,4.0406]